bitfinex/quotes_SOLUSD_20241028
["timestamp","ask_amount","ask_price","bid_price","bid_amount"]
[1730076678214,8.8989616,176.17,176.12,8.8989616]
[1730076679409,8.8989616,176.18,176.13,8.8989616]
[1730076679630,5.6753,176.2,176.14,8.8989616]
[1730076679631,20.12549,176.19,176.14,8.8989616]
[1730076679926,29.0244516,176.19,176.14,8.8989616]
[1730076680512,5.676,176.18,176.14,8.8989616]
[1730076681442,20.0,176.2,176.16,8.8989616]
[1730076683007,5.6756,176.19,176.16,8.8989616]
[1730076683420,20.0,176.2,176.16,8.8989616]
[1730076683613,0.12549,176.2,176.16,14.5755616]
[1730076684039,0.12549,176.2,176.16,8.8989616]
[1730076685039,25.6753,176.21,176.16,14.5754616]
[1730076687811,25.6753,176.21,176.17,8.8989616]
[1730076688014,25.6753,176.21,176.09,5.7789]
[1730076688015,32.70016442,176.22,176.19,8.8989616]
[1730076690518,47.27382602,176.22,176.17,8.8989616]
[1730076692851,8.8989616,176.2,176.15,8.8989616]
[1730076693062,8.8989616,176.2,176.14,8.8989616]
[1730076694350,8.8989616,176.2,176.14,14.5759616]
[1730076694351,14.5745616,176.2,176.14,14.5759616]
[1730076694529,8.8989616,176.19,176.14,14.5759616]
[1730076694728,14.5745616,176.2,176.14,14.5759616]
[1730076695841,5.80049,176.21,176.16,8.8989616]
[1730076696641,5.80049,176.21,176.1,23.776884]
[1730076696642,8.8989616,176.2,176.1,23.776884]
[1730076696850,8.8989616,176.2,176.15,8.8989616]
[1730076697356,14.5743616,176.2,176.14,8.8989616]
[1730076697645,8.8989616,176.19,176.14,8.8989616]
[1730076698150,8.8989616,176.19,176.13,8.8989616]
[1730076698833,14.5746616,176.19,176.14,5.6773]
[1730076699749,14.5746616,176.19,176.14,14.5762616]
[1730076700126,14.5746616,176.19,176.09,5.93085816]
[1730076700127,8.8989616,176.17,176.09,5.93085816]
[1730076700346,8.8989616,176.16,176.1,8.8989616]
[1730076700554,0.12549,176.18,176.09,8.8989616]
[1730076700555,8.8989616,176.15,176.09,8.8989616]
[1730076701354,8.8989616,176.14,176.09,8.8989616]
[1730076702555,14.5759616,176.15,176.1,14.5774616]
[1730076703639,5.677,176.15,176.11,8.8989616]
[1730076705355,14.5759616,176.15,176.1,14.5772616]
[1730076707258,14.5759616,176.15,176.1,8.8989616]
[1730076707564,8.8989616,176.14,176.08,8.8989616]
[1730076708757,14.5764616,176.14,176.09,5.6789]
[1730076709462,8.8989616,176.13,176.09,5.6789]
[1730076710745,8.8989616,176.13,176.08,8.8989616]
[1730076712760,8.8989616,176.14,176.08,8.8989616]
[1730076712951,8.8989616,176.14,176.09,8.8989616]
[1730076714171,8.8989616,176.14,176.09,14.5775616]
[1730076714172,14.5763616,176.14,176.09,14.5775616]
[1730076717561,14.5763616,176.14,176.09,8.8989616]
[1730076718847,8.8989616,176.13,176.09,5.6787]
[1730076719069,9.0244516,176.12,176.05,5.93250516]
[1730076719249,8.8989616,176.11,176.06,14.5787616]
[1730076720260,14.5772616,176.11,176.06,14.5787616]
[1730076720978,14.5772616,176.11,176.03,7.8538761]
[1730076720979,8.8989616,176.07,176.03,0.5963761]
[1730076721175,8.8989616,176.06,176.03,0.5963761]
[1730076721467,22.2617,176.1,176.03,0.5963761]
[1730076721468,8.8989616,176.05,176.03,0.5963761]
[1730076721871,8.8989616,176.04,176.03,0.5963761]
[1730076722057,0.12549,176.04,176.03,0.5963761]
[1730076722566,20.0,176.06,176.03,0.5963761]
[1730076722745,28.8989616,176.06,176.03,0.5963761]
[1730076723362,8.8989616,176.05,176.03,0.5963761]
[1730076723672,8.8989616,176.04,176.03,0.5963761]
[1730076724659,14.5791616,176.05,176.03,0.5963761]
[1730076725374,14.5791616,176.05,176.0,14.0963761]
[1730076725375,75.4459256,176.04,176.0,14.0963761]
[1730076725560,8.8989616,176.02,176.0,14.0963761]
[1730076726575,14.5801616,176.02,176.0,14.0963761]
[1730076727377,0.12549,176.01,176.0,14.0963761]
[1730076728278,42.5191,176.04,176.0,22.9953377]
[1730076728449,42.5191,176.04,176.01,8.8989616]
[1730076728652,42.5191,176.04,176.0,22.9953377]
[1730076728874,48.1996,176.04,176.0,22.9953377]
[1730076729055,48.1996,176.04,176.0,21.4953377]
[1730076729773,57.0985616,176.04,176.0,12.5963761]
[1730076730850,20.0,176.02,176.0,12.5963761]
[1730076731060,29.1499416,176.01,176.0,12.5963761]
[1730076731274,122.9268256,176.01,176.0,12.5963761]
[1730076731778,44.027864,176.01,176.0,12.5963761]
[1730076731953,52.9268256,176.01,176.0,12.5963761]
[1730076732849,25.93238,176.01,176.0,12.5963761]
[1730076733578,25.80689,176.01,176.0,12.5963761]
[1730076733995,20.0,176.02,176.0,12.5963761]
[1730076734784,28.8989616,176.02,176.0,12.5963761]
[1730076734982,34.5802616,176.02,176.0,12.5963761]
[1730076735701,29.0244516,176.01,176.0,12.5963761]
[1730076736172,20.12549,176.01,176.0,12.5963761]
[1730076737279,25.80689,176.01,176.0,12.5963761]
[1730076737468,20.12549,176.01,176.0,12.5963761]
[1730076737791,29.0244516,176.01,176.0,12.5963761]
[1730076738170,20.12549,176.01,176.0,12.5963761]
[1730076739287,20.0,176.01,176.0,12.5963761]
[1730076739483,0.12549,176.03,176.0,12.5963761]
[1730076739790,9.0244516,176.03,176.0,12.5963761]
[1730076739998,9.0244516,176.01,176.0,12.5963761]
[1730076740992,52.9268256,176.01,176.0,12.5963761]
[1730076741372,58.6082256,176.01,176.0,12.5963761]
[1730076741782,81.1187783,176.01,176.0,12.5963761]
[1730076742489,72.2198167,176.01,176.0,12.5963761]
[1730076742794,41.44018,176.01,176.0,12.5963761]
[1730076742976,79.19474232,176.01,176.0,12.5963761]
[1730076744172,49.61096832,176.01,176.0,12.5963761]
[1730076744499,15.5078,176.01,176.0,12.5963761]
[1730076744670,37.20113872,176.04,176.0,18.2780761]
[1730076745089,37.20113872,176.04,176.0,12.5963761]
[1730076745291,13.97767832,176.03,176.0,12.5963761]
[1730076745798,20.0,176.02,176.0,12.5963761]
[1730076745983,20.0,176.02,176.0,18.2780761]
[1730076746501,20.12549,176.03,176.0,18.2780761]
[1730076746799,20.0,176.03,176.01,13.97767832]
[1730076747602,16.6554604,176.04,176.01,13.97767832]
[1730076747780,16.6554604,176.04,176.02,13.97767832]
[1730076748187,13.97767832,176.03,176.0,18.2779761]
[1730076748429,30.63313872,176.04,176.0,18.2779761]
[1730076748806,20.0,176.03,176.0,18.2779761]
[1730076749517,20.0,176.03,176.0,12.5963761]
[1730076749827,20.0,176.03,176.01,13.97767832]
[1730076749996,16.6554604,176.04,176.01,13.97767832]
[1730076750399,16.6554604,176.04,176.0,26.57405442]
[1730076751213,16.6554604,176.04,176.02,13.97767832]
[1730076751418,16.6554604,176.04,176.02,19.65857832]
[1730076751607,16.6554604,176.04,176.03,13.97767832]
[1730076753511,16.6554604,176.04,176.03,19.65847832]
[1730076754503,36.6554604,176.04,176.0,18.2777761]
[1730076754810,34.22865832,176.01,176.0,12.5963761]
[1730076755426,33.97767832,176.01,176.0,12.5963761]
[1730076755625,39.91005832,176.01,176.0,12.5963761]
[1730076758605,39.78456832,176.01,176.0,12.5963761]
[1730076758930,20.0,176.02,176.0,12.5963761]
[1730076759330,25.6808,176.03,176.0,12.5963761]
[1730076759508,39.65847832,176.03,176.0,12.5963761]
[1730076759936,13.97767832,176.02,176.0,12.5963761]
[1730076760633,25.6808,176.03,176.0,12.5963761]
[1730076760634,14.10316832,176.01,176.0,12.5963761]
[1730076762227,34.10316832,176.01,176.0,12.5963761]
[1730076762627,39.91005832,176.01,176.0,12.5963761]
[1730076762835,63.68694232,176.01,176.0,12.5963761]
[1730076763926,79.70504232,176.01,176.0,12.5963761]
[1730076766638,109.70504232,176.01,176.0,12.5963761]
[1730076767917,85.92815832,176.01,176.0,12.5963761]
[1730076768245,35.67717832,176.01,176.0,12.5963761]
[1730076768826,16.6554604,176.04,176.0,12.5963761]
[1730076769021,22.3360604,176.04,176.0,12.5963761]
[1730076769848,36.31373872,176.04,176.0,12.5963761]
[1730076770241,20.0,176.03,176.0,12.5963761]
[1730076770737,33.97767832,176.03,176.0,12.5963761]
[1730076771749,20.0,176.03,176.0,12.5963761]
[1730076771960,33.97767832,176.03,176.0,12.5963761]
[1730076773161,39.65857832,176.03,176.0,12.5963761]
[1730076774254,13.97767832,176.02,176.0,12.5963761]
[1730076774751,20.0,176.01,176.0,12.5963761]
[1730076775437,33.97767832,176.01,176.0,12.5963761]
[1730076776335,20.0,176.01,176.0,12.5963761]
[1730076779047,5.6812,176.02,176.0,12.5963761]
[1730076779728,20.0,176.02,176.0,12.5963761]
[1730076780548,25.6811,176.02,176.0,12.5963761]
[1730076785245,8.94044963,176.01,176.0,12.5963761]
[1730076785554,28.94044963,176.01,176.0,12.5963761]
[1730076785952,29.19142963,176.01,176.0,12.5963761]
[1730076786343,52.96831363,176.01,176.0,12.5963761]
[1730076786541,29.19142963,176.01,176.0,12.5963761]
[1730076787137,0.1,175.95,175.86,35.76179852]
[1730076787332,0.1,175.95,175.94,8.94044963]
[1730076789461,0.1,175.95,175.87,23.902374]
[1730076789633,0.1,175.96,175.76,4.07455467]
[1730076789634,0.1,175.93,175.76,4.07455467]
[1730076789839,0.1,175.93,175.91,8.94044963]
[1730076790452,0.2,175.94,175.86,35.76179852]
[1730076790652,0.1,175.93,175.91,8.94044963]
[1730076791350,0.2,175.94,175.91,8.94044963]
[1730076791663,0.1,175.93,175.91,8.94044963]
[1730076791865,0.2,175.94,175.92,8.94044963]
[1730076792043,0.2,175.96,175.93,8.94044963]
[1730076792244,0.1,175.95,175.93,8.94044963]
[1730076792646,0.2,175.96,175.93,8.94044963]
[1730076792854,0.1,175.95,175.93,8.94044963]
[1730076793865,0.1,175.94,175.91,8.94044963]
[1730076794333,0.1,175.94,175.92,8.94044963]
[1730076795361,5.3832,175.96,175.92,8.94044963]
[1730076796346,8.94044963,175.94,175.86,5.93492081]
[1730076796546,8.94044963,175.94,175.88,8.94044963]
[1730076796741,8.94044963,175.94,175.89,8.94044963]
[1730076796939,20.12549,175.95,175.89,8.94044963]
[1730076797139,20.12549,175.95,175.9,8.94044963]
[1730076797140,20.0,175.95,175.9,8.94044963]
[1730076797362,20.0,175.95,175.91,8.94044963]
[1730076797562,0.12549,175.98,175.92,8.94044963]
[1730076797768,36.64124963,175.99,175.93,8.94044963]
[1730076798473,8.94044963,175.96,175.87,0.12549]
[1730076798644,8.94044963,175.96,175.9,8.94044963]
[1730076799169,20.0,175.95,175.83,0.1]
[1730076799366,8.94044963,175.94,175.88,8.94044963]
[1730076799663,20.0,175.95,175.83,0.1]
[1730076799664,28.94044963,175.95,175.89,8.94044963]
[1730076800454,34.62404963,175.95,175.9,8.94044963]
[1730076801254,9.06593963,175.94,175.89,8.94044963]
[1730076801570,20.0,175.95,175.9,8.94044963]
[1730076801870,25.6834,175.95,175.9,8.94044963]
[1730076802745,19.5,175.95,175.9,8.94044963]
[1730076803665,5.6831,175.96,175.91,8.94044963]
[1730076803845,14.62284963,175.98,175.92,8.94044963]
[1730076804753,22.0184,175.99,175.94,8.94044963]
[1730076805051,22.0184,175.99,175.95,8.94044963]
[1730076806559,20.0,176.0,175.96,8.94044963]
[1730076807469,36.25664963,176.03,175.98,8.94044963]
[1730076807655,8.94044963,176.02,175.96,8.94044963]
[1730076808963,14.62174963,176.02,175.97,8.94044963]
[1730076809545,20.0,176.02,175.98,8.94044963]
[1730076810553,25.6812,176.02,175.98,8.94044963]
[1730076811257,25.6812,176.02,175.91,0.12549]
[1730076811453,25.6812,176.02,175.97,8.94044963]
[1730076812196,8.94044963,176.0,175.95,8.94044963]
[1730076812377,8.94044963,175.98,175.92,8.94044963]
[1730076812676,5.6827,175.97,175.92,8.94044963]
[1730076813849,5.6827,175.97,175.93,8.94044963]
[1730076814281,14.62284963,175.98,175.93,8.94044963]
[1730076814456,34.62164963,176.02,175.97,8.94044963]
[1730076816250,25.6812,176.02,175.97,8.94044963]
[1730076816446,39.65199495,176.02,175.97,13.97079495]
[1730076816678,39.65199495,176.02,175.96,13.97079495]
[1730076817191,13.97079495,175.99,175.94,13.97079495]
[1730076817373,13.97079495,175.99,175.93,13.97079495]
[1730076818085,5.6824,175.98,175.93,13.97079495]
[1730076818377,5.6824,175.98,175.94,13.97079495]
[1730076819158,5.6821,175.99,175.94,13.97079495]
[1730076819694,28.0799,176.08,175.98,13.97079495]
[1730076819865,42.05069495,176.08,176.02,13.97079495]
[1730076820070,13.97079495,176.07,176.01,13.97079495]
[1730076820367,13.97079495,176.05,175.99,13.97079495]
[1730076820677,28.0799,176.08,176.0,13.97079495]
[1730076820855,13.97079495,176.05,176.0,13.97079495]
[1730076821273,5.6805,176.04,176.0,13.97079495]
[1730076822059,5.6805,176.04,176.01,13.97079495]
[1730076822373,5.1805,176.04,176.01,13.97079495]
[1730076823782,20.0,176.05,176.01,13.97079495]
[1730076823972,25.6802,176.05,176.01,13.97079495]
[1730076824372,25.6799,176.06,176.03,13.97079495]
[1730076824573,0.12549,176.06,176.03,13.97079495]
[1730076825379,0.12549,176.06,176.02,13.97079495]
[1730076826171,5.6798,176.06,176.02,13.97079495]
[1730076826585,19.62549,176.07,176.04,13.97079495]
[1730076826887,28.08,176.08,176.04,13.97079495]
[1730076827872,22.4007,176.08,176.04,13.97079495]
[1730076828075,5.6789,176.09,176.05,13.97079495]
[1730076828488,20.0,176.08,176.05,13.97079495]
[1730076828666,20.0,176.1,176.06,13.97079495]
[1730076828979,19.5,176.1,176.06,13.97079495]
[1730076829561,25.1786,176.1,176.06,13.97079495]
[1730076831177,13.97079495,176.08,176.02,13.97079495]
[1730076831367,39.375,176.1,175.97,0.35098]
[1730076831568,13.97079495,176.08,176.03,13.97079495]
[1730076831994,13.97079495,176.09,176.04,13.97079495]
[1730076832494,5.6792,176.08,176.04,13.97079495]
[1730076834669,5.6789,176.09,176.04,13.97079495]
[1730076835188,5.6789,176.09,176.05,13.97079495]
[1730076836669,19.64969495,176.09,176.04,13.97079495]
[1730076838597,14.6129215,176.09,176.04,8.9340215]
[1730076841186,8.9340215,176.07,175.97,0.12549]
[1730076841393,8.9340215,176.07,176.02,8.9340215]
[1730076842894,5.6798,176.06,176.02,8.9340215]
[1730076843289,5.6798,176.06,176.01,8.9340215]
[1730076843603,14.6138215,176.06,176.01,8.9340215]
[1730076843811,8.9340215,176.04,175.92,5.93554426]
[1730076843977,8.9340215,176.02,175.97,8.9340215]
[1730076844474,8.9340215,176.01,175.96,8.9340215]
[1730076844988,14.6154215,176.01,175.92,5.93554426]
[1730076845192,8.9340215,175.99,175.94,8.9340215]
[1730076846390,8.9340215,176.0,175.95,8.9340215]
[1730076847499,8.9340215,175.99,175.94,8.9340215]
[1730076848592,14.6161215,175.99,175.94,8.9340215]
[1730076849105,8.9340215,175.98,175.93,8.9340215]
[1730076849407,8.9340215,175.96,175.91,8.9340215]
[1730076850594,8.9340215,175.95,175.89,8.9340215]
[1730076850808,8.9340215,175.95,175.9,8.9340215]
[1730076851099,14.6173215,175.96,175.9,8.9340215]
[1730076852292,8.9340215,175.97,175.92,8.9340215]
[1730076853984,14.6169215,175.97,175.86,35.836086]
[1730076854184,14.6169215,175.97,175.92,8.9340215]
[1730076854388,8.9340215,175.96,175.91,8.9340215]
[1730076858203,14.6172215,175.96,175.91,8.9340215]
[1730076863916,8.9340215,175.95,175.91,8.9340215]
[1730076864489,8.9340215,175.94,175.84,6.92418847]
[1730076864691,8.9340215,175.94,175.79,12.58730413]
[1730076864692,8.9340215,175.89,175.79,0.2]
[1730076864989,8.9340215,175.89,175.84,8.9340215]
[1730076865202,8.9340215,175.89,175.79,6.04082984]
[1730076865503,8.9340215,175.89,175.84,8.9340215]
[1730076866984,20.0,175.91,175.86,8.9340215]
[1730076867192,8.9340215,175.91,175.86,8.9340215]
[1730076867902,14.6184215,175.92,175.81,0.1]
[1730076868105,8.9340215,175.9,175.85,8.9340215]
[1730076868515,8.9340215,175.89,175.84,8.9340215]
[1730076868695,8.9340215,175.9,175.85,8.9340215]
[1730076870195,14.6191215,175.9,175.85,8.9340215]
[1730076870499,8.9340215,175.89,175.84,8.9340215]
[1730076871012,5.6851,175.9,175.84,8.9340215]
[1730076871211,14.6191215,175.9,175.84,8.9340215]
[1730076872417,8.9340215,175.89,175.84,8.9340215]
[1730076873307,5.6844,175.92,175.83,8.9340215]
[1730076873308,8.9340215,175.88,175.83,8.9340215]
[1730076873496,8.9340215,175.89,175.83,8.9340215]
[1730076874513,5.6856,175.88,175.83,8.9340215]
[1730076874821,22.231,175.94,175.87,8.9340215]
[1730076875001,22.231,175.94,175.9,8.9340215]
[1730076875317,27.9147,175.94,175.89,8.9340215]
[1730076875529,27.9147,175.94,175.9,8.9340215]
[1730076876017,27.9147,175.94,175.89,8.9340215]
[1730076876193,27.9147,175.94,175.9,8.9340215]
[1730076877815,5.6833,175.96,175.92,8.9340215]
[1730076878188,5.6828,175.97,175.92,8.9340215]
[1730076878506,14.6168215,175.97,175.92,8.9340215]
[1730076880218,8.9340215,175.96,175.91,8.9340215]
[1730076881210,8.9340215,175.95,175.9,8.9340215]
[1730076883214,14.6173215,175.96,175.9,8.9340215]
[1730076883522,5.6808,176.03,175.95,8.9340215]
[1730076883814,14.6148215,176.03,175.97,8.9340215]
[1730076884320,8.9340215,176.02,175.97,8.9340215]
[1730076884831,8.9340215,176.02,175.96,8.9340215]
[1730076885524,8.9340215,176.0,175.91,0.12549]
[1730076885925,8.9340215,176.0,175.94,8.9340215]
[1730076886625,14.6158215,176.0,175.95,8.9340215]
[1730076886818,5.6818,176.0,175.96,8.9340215]
[1730076891718,14.6158215,176.0,175.95,8.9340215]
[1730076892328,5.6818,176.0,175.96,8.9340215]
[1730076893211,14.6158215,176.0,175.95,8.9340215]
[1730076894829,5.6815,176.01,175.96,8.9340215]
[1730076895129,8.9340215,176.02,175.97,8.9340215]
[1730076896009,14.6154215,176.02,175.97,8.9340215]
[1730076896932,20.12549,176.04,175.97,8.9340215]
[1730076897142,14.6148215,176.03,175.98,8.9340215]
[1730076898728,28.1727,176.05,175.99,8.9340215]
[1730076898928,8.9340215,176.04,175.99,8.9340215]
[1730076900936,8.9340215,176.03,175.98,8.9340215]
[1730076902255,8.9340215,176.02,175.94,0.25098]
[1730076902534,8.9340215,176.02,175.97,8.9340215]
[1730076902720,14.6148215,176.03,175.98,8.9340215]
[1730076903825,28.1727,176.05,175.99,8.9340215]
[1730076904033,8.9340215,176.04,175.99,8.9340215]
[1730076904537,37.1067215,176.05,176.0,8.9340215]
[1730076905032,8.9340215,176.04,175.99,8.9340215]
[1730076905332,8.9340215,176.03,175.98,8.9340215]
[1730076905716,8.9340215,176.03,175.9,20.0]
[1730076905717,8.9340215,175.99,175.89,0.1]
[1730076905927,8.9340215,175.98,175.93,8.9340215]
[1730076907636,8.9340215,175.99,175.94,8.9340215]
[1730076907941,14.6158215,176.0,175.94,8.9340215]
[1730076908613,8.9340215,176.01,175.95,8.9340215]
[1730076908813,5.6815,176.01,175.97,8.9340215]
[1730076909532,5.6805,176.04,175.97,8.9340215]
[1730076909755,14.6145215,176.04,175.98,8.9340215]
[1730076910034,8.9340215,176.04,175.99,8.9340215]
[1730076912027,37.1065215,176.05,176.0,8.9340215]
[1730076913043,31.4263215,176.05,176.0,8.9340215]
[1730076913930,5.6801,176.06,176.02,8.9340215]
[1730076914123,20.0,176.08,176.03,8.9340215]
[1730076914321,38.66164423,176.1,176.04,8.9340215]
[1730076914524,47.59566573,176.1,176.04,8.9340215]
[1730076914959,53.27436573,176.1,176.04,8.9340215]
[1730076915318,38.66164423,176.1,176.05,8.9340215]
[1730076915625,22.65,176.14,176.09,8.9340215]
[1730076916447,31.5840215,176.14,176.09,8.9340215]
[1730076916651,37.2613215,176.14,176.09,8.9340215]
[1730076918559,42.277749,176.14,176.09,13.950449]
[1730076918852,28.3273,176.14,176.09,13.950449]
[1730076920633,28.3273,176.14,176.1,13.950449]
[1730076921058,28.3273,176.14,176.11,13.950449]
[1730076921361,5.677,176.15,176.11,13.950449]
[1730076921539,5.677,176.15,176.12,13.950449]
[1730076921850,5.6766,176.16,176.12,13.950449]
[1730076922060,5.6766,176.16,176.11,13.950449]
[1730076922555,13.950449,176.12,176.05,13.950449]
[1730076922760,5.6766,176.16,176.06,13.950449]
[1730076922761,13.950449,176.11,176.06,13.950449]
[1730076923256,13.950449,176.09,176.03,13.950449]
[1730076924860,19.629349,176.09,176.03,13.950449]
[1730076925454,19.629349,176.09,176.04,13.950449]
[1730076928354,5.6786,176.1,176.05,13.950449]
[1730076928563,28.9149,176.11,176.07,13.950449]
[1730076929154,23.2366,176.11,176.08,13.950449]
[1730076929541,19.628249,176.13,176.08,13.950449]
[1730076930159,5.6778,176.13,176.09,13.950449]
[1730076930744,5.6778,176.13,176.08,13.950449]
[1730076931064,19.628249,176.13,176.08,13.950449]
[1730076931763,5.6778,176.13,176.08,13.950449]
[1730076932450,13.950449,176.13,176.07,13.950449]
[1730076932648,19.627749,176.14,176.09,13.950449]
[1730076933241,41.072749,176.15,176.1,13.950449]
[1730076933543,21.4453,176.15,176.12,13.950449]
[1730076935045,21.4453,176.15,176.13,13.950449]
[1730076935659,41.483849,176.19,176.14,13.950449]
[1730076936045,41.483849,176.19,176.13,13.950449]
[1730076938774,21.8575,176.19,176.15,13.950449]
[1730076938939,21.8575,176.19,176.16,13.950449]
[1730076940769,20.2191251,176.3,176.18,13.950449]
[1730076940951,13.950449,176.28,176.21,13.950449]
[1730076941649,13.950449,176.28,176.22,13.950449]
[1730076942344,20.2191251,176.3,176.24,13.950449]
[1730076942544,0.5963761,176.3,176.25,13.950449]
[1730076942766,14.5468251,176.3,176.24,13.950449]
[1730076943640,0.5963761,176.3,176.24,13.950449]
[1730076944257,0.5963761,176.3,176.25,13.950449]
[1730076946147,0.5963761,176.3,176.26,13.950449]
[1730076947248,14.5468251,176.3,176.24,13.950449]
[1730076947450,13.950449,176.28,176.19,0.25098]
[1730076947659,13.950449,176.28,176.22,13.950449]
[1730076948172,20.2189251,176.3,176.24,13.950449]
[1730076948347,14.5468251,176.3,176.24,13.950449]
[1730076948767,20.2189251,176.3,176.24,13.950449]
[1730076951569,6.2684761,176.3,176.25,13.950449]
[1730076951782,0.5963761,176.3,176.27,13.950449]
[1730076952149,0.5963761,176.3,176.22,13.950449]
[1730076952150,0.5963761,176.3,176.28,13.950449]
[1730076954669,0.5963761,176.3,176.29,13.950449]
[1730076958785,0.5963761,176.3,176.27,13.950449]
[1730076958959,0.5963761,176.3,176.26,13.950449]
[1730076959472,0.5963761,176.3,176.23,23.776884]
[1730076959679,0.5963761,176.3,176.27,13.950449]
[1730076960672,0.5963761,176.3,176.28,13.950449]
[1730076962955,0.5963761,176.3,176.24,0.12549]
[1730076962956,0.5963761,176.3,176.29,13.950449]
[1730076964571,0.5963761,176.3,176.29,8.90657661]
[1730076966583,0.5963761,176.3,176.24,0.12549]
[1730076966881,0.5963761,176.3,176.26,13.91971866]
[1730076967380,0.5963761,176.3,176.27,13.91971866]
[1730076967580,14.51609476,176.3,176.25,13.91971866]
[1730076967786,14.51609476,176.3,176.24,13.91971866]
[1730076968091,13.91971866,176.27,176.21,13.91971866]
[1730076968258,13.91971866,176.27,176.22,13.91971866]
[1730076970075,19.59211866,176.29,176.24,13.91971866]
[1730076970763,0.5963761,176.3,176.25,13.91971866]
[1730076971682,0.5963761,176.3,176.26,13.91971866]
[1730076974173,13.91971866,176.29,176.24,13.91971866]
[1730076975372,14.51609476,176.3,176.24,13.91971866]
[1730076976270,13.91971866,176.29,176.24,13.91971866]
[1730076976764,14.51609476,176.3,176.24,13.91971866]
[1730076977472,14.51609476,176.3,176.19,0.2]
[1730076977473,14.51609476,176.3,176.25,13.91971866]
[1730076978569,14.51609476,176.3,176.24,13.91971866]
[1730076978988,13.91971866,176.29,176.24,13.91971866]
[1730076980367,0.5963761,176.3,176.25,13.91971866]
[1730076980579,14.51609476,176.3,176.25,13.91971866]
[1730076981264,14.51609476,176.3,176.19,0.2]
[1730076981265,14.51609476,176.3,176.24,13.91971866]
[1730076985091,0.5963761,176.3,176.24,13.91971866]
[1730076985290,14.51609476,176.3,176.24,13.91971866]
[1730076985500,0.5963761,176.3,176.26,13.91971866]
[1730076985793,0.5963761,176.3,176.19,0.1]
[1730076985794,0.5963761,176.3,176.28,13.91971866]
[1730076986784,0.5963761,176.3,176.27,13.91971866]
[1730076986975,0.5963761,176.3,176.25,13.91971866]
[1730076987179,13.91971866,176.29,176.24,13.91971866]
[1730076988492,8.91330707,176.29,176.24,8.91330707]
[1730076988875,9.50968317,176.3,176.24,8.91330707]
[1730076989591,0.5963761,176.3,176.25,8.91330707]
[1730076990274,9.50968317,176.3,176.25,8.91330707]
[1730076992000,9.50968317,176.3,176.24,8.91330707]
[1730076992324,8.91330707,176.27,176.2,0.12549]
[1730076992491,8.91330707,176.27,176.21,8.91330707]
[1730076995077,8.91330707,176.27,176.22,8.91330707]
[1730076996904,5.6728,176.28,176.22,8.91330707]
[1730076997107,8.91330707,176.27,176.22,8.91330707]
[1730076997398,5.6728,176.28,176.22,8.91330707]
[1730076997399,8.91330707,176.28,176.22,8.91330707]
[1730076999393,8.91330707,176.28,176.23,8.91330707]
[1730077004782,8.91330707,176.28,176.22,8.91330707]
[1730077005502,8.91330707,176.26,176.2,8.91330707]
[1730077005886,8.91330707,176.24,176.18,14.83318417]
[1730077006088,8.91330707,176.25,176.2,8.91330707]
[1730077006408,8.91330707,176.26,176.2,8.91330707]
[1730077007810,27.0701,176.27,176.18,5.9198771]
[1730077007998,8.91330707,176.25,176.2,8.91330707]
[1730077008198,8.91330707,176.26,176.2,8.91330707]
[1730077009512,21.3968,176.27,176.24,8.91330707]
[1730077010288,6.2686761,176.3,176.25,8.91330707]
[1730077012094,0.5963761,176.3,176.25,8.91330707]
[1730077012618,6.2684761,176.3,176.25,8.91330707]
[1730077013193,15.18178317,176.3,176.25,8.91330707]
[1730077017218,0.5963761,176.3,176.27,8.91330707]
[1730077017525,0.5963761,176.3,176.29,32.94117107]
[1730077018602,0.5963761,176.3,176.29,23.902374]
[1730077018824,0.5963761,176.3,176.29,32.81568107]
[1730077019119,0.5963761,176.3,176.28,8.91330707]
[1730077019320,0.5963761,176.3,176.25,0.12549]
[1730077019529,0.5963761,176.3,176.28,8.91330707]
[1730077019826,0.5963761,176.3,176.29,8.91330707]
[1730077020799,0.5963761,176.3,176.28,8.91330707]
[1730077023320,0.5963761,176.3,176.29,8.91330707]
[1730077026631,0.5963761,176.3,176.28,8.91330707]
[1730077028023,0.5963761,176.3,176.24,23.776884]
[1730077028221,0.5963761,176.3,176.26,8.91330707]
[1730077031330,0.5963761,176.3,176.27,8.91330707]
[1730077035825,0.5963761,176.3,176.28,8.91330707]
[1730077036539,0.5963761,176.3,176.25,0.12549]
[1730077036719,0.5963761,176.3,176.27,8.91330707]
[1730077041757,8.91330707,176.28,176.22,20.0]
[1730077041924,8.91330707,176.28,176.22,8.91330707]
[1730077044243,27.7886761,176.3,176.21,5.91650113]
[1730077044244,8.91330707,176.26,176.21,14.8298082]